bitfinex/quotes_ETHUSD_20260302
["timestamp","ask_amount","ask_price","bid_price","bid_amount"]
[1772461695334,0.00153886,1932.0,1931.2,2.204]
[1772461695709,0.00153886,1932.0,1931.3,1.29446486]
[1772461695945,0.00153886,1932.0,1931.4,2.206]
[1772461696279,0.001,1932.5,1931.5,5.96402695]
[1772461696453,0.001,1932.5,1931.6,6.02956295]
[1772461696948,0.001,1932.5,1931.8,0.065536]
[1772461697161,0.002,1932.7,1931.8,0.065536]
[1772461697162,6.46841114,1933.7,1931.8,6.02956295]
[1772461697460,6.26903207,1934.0,1932.4,5.89233702]
[1772461697658,6.26903207,1934.0,1932.3,3.0236989]
[1772461697659,7.56169073,1934.0,1932.7,1.29352718]
[1772461698059,7.56169073,1934.0,1932.8,2.208]
[1772461698264,6.26903207,1934.0,1932.8,2.208]
[1772461698479,0.00153886,1934.0,1932.8,2.208]
[1772461698647,6.26749321,1933.9,1932.3,1.29379495]
[1772461698853,6.26749321,1933.8,1932.4,2.207]
[1772461699262,6.26749321,1933.8,1932.4,8.09933702]
[1772461699463,1.29420082,1934.0,1932.5,5.89233702]
[1772461699778,6.26903207,1934.0,1932.6,1.29359412]
[1772461699965,6.26749321,1933.8,1932.6,2.207]
[1772461700343,6.26749321,1933.6,1932.4,2.207]
[1772461701465,6.26749321,1933.4,1932.0,0.00153886]
[1772461701650,6.26749321,1933.2,1932.0,0.00153886]
[1772461701951,6.26749321,1933.0,1931.5,3.50133083]
[1772461702279,6.26903207,1933.0,1931.5,3.50133083]
[1772461702778,6.26903207,1933.0,1931.6,2.206]
[1772461702978,6.26903207,1933.0,1931.5,1.29433083]
[1772461703143,6.26749321,1932.8,1931.4,5.17758573]
[1772461703354,6.26749321,1932.6,1931.2,2.205]
[1772461704052,6.26749321,1932.4,1931.3,1.29446486]
[1772461704353,6.26749321,1932.4,1931.1,7.38012758]
[1772461704973,6.26749321,1932.4,1931.1,7.38112758]
[1772461705854,6.26749321,1932.4,1931.1,5.17812758]
[1772461706054,1.29379495,1932.3,1931.1,2.202]
[1772461706584,7.56128816,1932.3,1931.1,2.202]
[1772461707372,7.56128816,1932.3,1931.2,2.2]
[1772461707575,7.74055993,1932.6,1931.2,8.09233702]
[1772461707576,1.29364977,1932.6,1931.2,8.09233702]
[1772461707803,7.56106956,1932.7,1931.3,5.89233702]
[1772461708089,7.56106956,1932.7,1931.4,1.29439784]
[1772461708757,7.56106956,1932.7,1931.5,2.199]
[1772461709159,1.29490649,1933.0,1931.5,8.09133702]
[1772461710098,6.26749321,1932.9,1931.3,5.17759138]
[1772461710411,7.4856858,1930.8,1929.0,9.61368945]
[1772461710553,2.51213723,1930.9,1930.0,1.29685433]
[1772461710752,6.26749321,1931.0,1930.0,0.00153886]
[1772461711658,6.26749321,1930.2,1927.5,0.10616832]
[1772461711795,6.26749321,1930.2,1928.1,0.00153886]
[1772461711796,6.26749321,1929.5,1928.1,0.00153886]
[1772461712224,1.2957396,1929.4,1928.1,0.00153886]
[1772461712723,7.56323281,1929.4,1928.1,0.00153886]
[1772461713624,7.56323281,1929.4,1928.2,2.226]
[1772461713828,6.26749321,1928.7,1927.1,1.29728607]
[1772461714204,1.29627709,1928.6,1927.2,0.00153886]
[1772461714533,7.56374254,1928.7,1927.1,5.89387588]
[1772461714731,1.29624933,1928.7,1927.1,5.89387588]
[1772461715528,1.29624933,1928.7,1927.2,2.225]
[1772461715806,1.29624933,1928.7,1927.2,8.11733702]
[1772461716003,1.29759551,1929.0,1927.3,5.89387588]
[1772461716336,1.29759551,1929.0,1927.4,1.29708415]
[1772461716737,1.29759551,1929.0,1927.4,7.18942117]
[1772461717038,0.00153886,1929.0,1927.5,5.95941188]
[1772461719106,1.29553816,1929.7,1928.2,8.03871807]
[1772461719426,1.29553816,1929.7,1928.3,2.217]
[1772461719937,7.56298341,1929.8,1928.3,8.10933702]
[1772461720116,7.56298341,1929.8,1928.4,2.216]
[1772461720316,5.18342299,1930.0,1929.1,2.14638105]
[1772461720317,0.00153886,1930.0,1929.1,2.14638105]
[1772461720511,6.26749321,1930.7,1929.2,8.10933702]
[1772461720745,7.5623646,1930.7,1929.2,8.10933702]
[1772461721045,7.5623646,1930.7,1929.3,1.29580676]
[1772461722238,7.5623646,1930.7,1929.4,2.217]
[1772461722735,1.29487139,1930.7,1929.4,2.217]
[1772461723106,11.44769624,1931.0,1929.5,1.29567245]
[1772461723447,6.26749321,1929.7,1927.0,5.89387588]
[1772461723629,6.26749321,1929.7,1927.2,5.18991221]
[1772461723630,0.57118318,1928.8,1927.2,5.18991221]
[1772461723812,0.001,1928.9,1927.8,1.29678628]
[1772461724178,0.001,1928.9,1927.8,2.242]
[1772461724310,0.001,1928.9,1928.1,2.242]
[1772461724708,0.001,1928.9,1928.0,1.29819068]
[1772461725045,0.001,1928.9,1928.0,3.54019068]
[1772461726839,6.26849321,1928.9,1928.0,3.53619068]
[1772461727250,6.21180744,1928.0,1927.2,0.0011]
[1772461727421,1.29674847,1927.9,1927.2,0.0011]
[1772461727940,7.50852101,1928.0,1927.2,0.0011]
[1772461728107,7.50849251,1928.0,1927.2,0.0011]
[1772461729137,6.21180744,1928.4,1927.2,0.0011]
[1772461729414,11.39753653,1928.4,1927.2,0.0011]
[1772461729819,0.001,1928.9,1927.4,6.19120489]
[1772461730429,0.001,1928.9,1927.5,6.19120489]
[1772461730624,0.001,1928.9,1927.6,2.239]
[1772461731253,0.001,1928.9,1927.7,8.33758594]
[1772461731459,0.001,1928.9,1927.9,1.29674775]
[1772461731760,0.001,1928.9,1927.9,7.48795264]
[1772461733626,0.001,1928.9,1928.0,2.237]
[1772461734953,0.001,1928.9,1928.1,2.235]
[1772461735739,0.001,1928.9,1928.2,1.296546]
[1772461736124,0.001,1928.8,1928.3,2.232]
[1772461737834,0.001,1928.8,1928.4,1.29641153]
[1772461739347,0.001,1928.8,1928.5,2.229]
[1772461739546,0.001,1928.9,1928.5,2.229]
[1772461739547,0.00153886,1929.0,1928.5,2.229]
[1772461740062,6.21180744,1929.5,1928.6,1.29627709]
[1772461740263,6.21180744,1929.5,1928.4,2.229]
[1772461740264,6.21180744,1929.3,1928.4,2.229]
[1772461740751,6.21180744,1929.3,1928.1,1.29661324]
[1772461741154,6.21180744,1929.3,1928.2,2.229]
[1772461741843,1.29587393,1929.2,1928.3,1.29647876]
[1772461742429,11.39513346,1929.3,1928.3,1.29647876]
[1772461742630,5.3321748,1929.7,1928.3,1.29647876]
[1772461742631,7.5073456,1929.7,1928.3,1.29647876]
[1772461742859,7.5073456,1929.7,1928.4,2.227]
[1772461744163,7.5073456,1929.7,1928.2,5.18591505]
[1772461744370,7.5073456,1929.7,1928.3,2.223]
[1772461744665,6.21180744,1929.6,1928.3,2.223]
[1772461746263,6.21180744,1929.4,1928.1,5.18641159]
[1772461746448,6.21180744,1929.4,1928.4,2.22]
[1772461747334,5.18227951,1929.7,1928.4,2.22]
[1772461747550,5.18227951,1929.7,1928.2,6.19120489]
[1772461747750,11.39408695,1929.7,1928.3,2.215]
[1772461747950,6.21180744,1929.6,1928.3,2.215]
[1772461748152,6.21180744,1929.6,1928.4,0.0011]
[1772461748403,6.21180744,1929.6,1928.5,2.214]
[1772461748404,1.29667245,1929.5,1928.5,2.214]
[1772461748551,0.001,1929.5,1928.5,2.214]
[1772461750364,0.001,1929.5,1928.6,3.50727709]
[1772461752254,0.001,1929.5,1928.6,1.29627709]
[1772461752446,0.001,1929.5,1928.7,2.207]
[1772461753372,0.001,1929.5,1928.8,2.206]
[1772461754276,0.001,1929.5,1928.9,1.29607548]
[1772461756684,0.001,1929.5,1929.0,2.201]
[1772461756889,0.001,1929.5,1929.1,2.201]
[1772461757980,3.80760826,1929.9,1928.6,5.18505259]
[1772461757981,8.67110691,1929.9,1929.2,2.2]
[1772461758149,0.00153886,1930.0,1929.3,2.201]
[1772461758480,0.00153886,1930.0,1929.4,2.201]
[1772461758683,0.00153886,1930.0,1929.5,2.201]
[1772461760782,0.001,1929.9,1929.5,3.49664736]
[1772461762486,0.001,1929.9,1929.6,2.193]
[1772461762786,0.001,1929.9,1929.6,3.48853925]
[1772461763452,0.00153886,1930.0,1929.6,3.48853925]
[1772461763866,0.00153886,1930.0,1929.7,2.192]
[1772461764064,0.00153886,1930.0,1929.3,1.29580676]
[1772461764361,6.16050854,1930.0,1929.2,5.18322707]
[1772461764561,6.16050854,1930.0,1929.4,2.192]
[1772461764766,6.16050854,1930.0,1929.2,5.18322707]
[1772461765087,7.45585702,1930.0,1929.5,2.191]
[1772461765580,1.29688734,1930.0,1929.5,2.191]
[1772461765773,0.00153886,1930.0,1929.5,2.191]
[1772461766976,0.00153886,1930.0,1929.5,3.48661305]
[1772461769291,6.15896968,1929.9,1928.4,0.0011]
[1772461769478,6.15896968,1929.9,1928.4,1.29749561]
[1772461769479,6.15896968,1929.5,1928.4,1.29749561]
[1772461769802,6.15896968,1929.5,1928.4,0.0011]
[1772461770005,6.15896968,1929.5,1928.4,7.36788168]
[1772461770964,6.15896968,1929.5,1928.5,2.191]
[1772461771097,7.45470928,1929.4,1928.5,1.2963443]
[1772461771310,7.45470928,1929.4,1928.6,2.19]
[1772461771311,6.15896968,1929.3,1928.6,2.19]
[1772461772393,6.15896968,1929.3,1928.6,2.1911]
[1772461774277,1.29587393,1929.2,1928.7,2.186]
[1772461774803,7.45484361,1929.2,1928.6,0.0011]
[1772461775004,7.45484361,1929.2,1928.5,2.1851]
[1772461775174,7.45484361,1929.2,1928.5,0.0011]
[1772461775375,7.45484361,1929.2,1928.5,2.1841]
[1772461776222,3.0807865,1929.1,1928.5,2.1841]
[1772461776424,4.37679479,1929.0,1928.6,2.18]
[1772461776706,3.0807865,1928.9,1928.6,2.18]
[1772461777026,3.0807865,1928.8,1928.6,2.18]
[1772461777176,1.2957396,1929.4,1928.6,2.18]
[1772461778473,11.34168527,1929.5,1928.7,2.18]
[1772461779608,7.45464213,1929.5,1928.7,2.18]
[1772461779906,1.29567245,1929.5,1928.7,2.18]
[1772461780070,1.29567245,1929.5,1928.5,6.07147709]
[1772461780071,11.34134445,1929.7,1928.8,2.176]
[1772461780478,11.34134445,1929.7,1928.9,1.29607548]
[1772461781780,11.34134445,1929.7,1928.8,3.47208962]
[1772461782780,11.34134445,1929.7,1928.8,2.176]
[1772461783118,11.34134445,1929.7,1928.8,3.47213478]
[1772461783417,11.34134445,1929.7,1928.9,2.171]
[1772461784683,5.18237477,1929.7,1928.9,2.171]
[1772461784910,6.15896968,1929.6,1928.9,3.46706295]
[1772461785111,6.15996968,1929.6,1928.9,2.171]
[1772461785413,6.15996968,1929.6,1928.7,0.0011]
[1772461785712,6.15996968,1929.6,1928.8,2.166]
[1772461786831,7.45464213,1929.5,1928.8,2.166]
[1772461788842,7.45464213,1929.5,1928.8,2.159]
[1772461791064,7.45464213,1929.5,1928.8,3.45513798]
[1772461791249,7.45464213,1929.5,1928.8,2.159]
[1772461791668,7.45464213,1929.5,1928.7,0.0011]
[1772461791963,7.45464213,1929.5,1928.7,1.2972998]
[1772461792137,7.45464213,1929.5,1928.7,1.29730977]
[1772461792666,7.45464213,1929.5,1928.7,0.0011]
[1772461793072,0.001,1929.6,1928.8,5.9860258]
[1772461793233,1.29661845,1929.6,1928.8,5.9860258]
[1772461793938,7.74162578,1929.6,1928.8,5.9860258]
[1772461794135,7.74162578,1929.6,1928.7,0.0011]
[1772461794765,7.74162578,1929.6,1928.7,5.9871258]
[1772461794970,7.74162578,1929.6,1928.9,5.9860258]
[1772461794971,0.001,1929.6,1928.9,5.9860258]
[1772461795637,6.44600733,1929.6,1928.7,1.29725885]
[1772461796263,6.44600733,1929.6,1928.7,7.28328465]
[1772461796836,7.74074693,1929.4,1928.7,0.0011]
[1772461800247,7.74074693,1929.4,1928.3,5.18647723]
[1772461800248,6.44500733,1929.4,1928.3,5.18647723]
[1772461800448,6.44500733,1928.7,1927.5,5.9860258]
[1772461800780,9.3745144,1928.8,1927.8,1.01]
[1772461801078,7.74128442,1928.6,1927.7,5.9860258]
[1772461801297,0.42890105,1929.0,1928.1,5.9860258]
[1772461801473,9.3745144,1929.2,1928.2,5.9860258]
[1772461801474,7.74093594,1929.2,1928.2,5.9860258]
[1772461801644,6.44500733,1929.0,1928.0,5.98756466]
[1772461801982,7.74093594,1929.2,1928.0,5.98756466]
[1772461802547,5.18309438,1929.4,1928.0,5.98756466]
[1772461802752,7.74174693,1929.5,1928.3,5.9860258]
[1772461802753,6.44500733,1929.2,1928.3,5.9860258]
[1772461802990,1.2957396,1929.4,1928.3,7.28246729]
[1772461803165,0.001,1929.6,1929.1,5.9860258]
[1772461803483,1.29640788,1929.9,1929.2,2.164]
[1772461803890,7.74141521,1929.9,1928.9,5.9860258]
[1772461804074,6.44500733,1929.6,1928.6,2.166]
[1772461804251,6.44500733,1929.3,1928.2,2.174]
[1772461804819,6.44500733,1929.0,1928.2,2.174]
[1772461805030,2.92950707,1928.8,1928.0,0.00153886]
[1772461805226,6.44500733,1928.7,1928.0,0.00153886]
[1772461805520,7.74108281,1928.9,1928.0,0.00153886]
[1772461805687,6.44500733,1928.4,1927.5,1.859]
[1772461805888,6.44500733,1928.4,1927.3,0.0011]
[1772461806320,6.44500733,1928.8,1927.5,2.64090913]
[1772461806541,6.44500733,1928.8,1927.3,0.0011]
[1772461806689,6.44500733,1928.4,1927.3,2.1851]
[1772461806889,6.44500733,1928.1,1927.3,0.0011]
[1772461807105,7.74168782,1928.0,1927.3,0.0011]
[1772461807289,1.29668049,1928.0,1927.3,0.0011]
[1772461807485,1.29652882,1928.3,1927.3,2.64200913]
[1772461807733,7.74153615,1928.3,1927.3,0.0011]
[1772461808492,6.44500733,1928.1,1927.3,0.0011]
[1772461808955,1.29652882,1928.3,1927.2,0.0011]
[1772461808956,6.44500733,1927.7,1927.2,0.0011]
[1772461809235,5.25135731,1928.4,1927.2,0.0011]
[1772461809236,1.29641153,1928.4,1927.2,0.0011]
[1772461809436,1.29614267,1928.8,1928.0,0.0011]
[1772461810025,6.44500733,1928.8,1928.0,0.0011]
[1772461810231,1.29710531,1928.9,1928.0,0.0011]
[1772461810232,0.001,1928.9,1928.0,0.0011]
[1772461810545,0.001,1928.9,1928.1,2.191]
[1772461810831,5.18232067,1929.7,1928.3,2.64090913]
[1772461810832,7.74062234,1929.6,1928.3,2.64090913]
[1772461811058,7.74062234,1929.6,1928.4,1.29641153]
[1772461811329,0.001,1929.9,1928.6,1.68003713]
[1772461811330,3.90225022,1929.9,1928.6,1.68003713]
[1772461811559,0.001,1929.9,1928.9,1.68003713]
[1772461811692,0.001,1929.9,1929.1,2.92950707]
[1772461811896,6.44500733,1930.4,1929.1,4.6740802]
[1772461812196,2.93104593,1931.0,1929.1,4.6740802]
[1772461812197,7.73974035,1930.9,1929.4,3.54077923]
[1772461812408,7.73974035,1930.9,1929.5,0.61127216]
[1772461812744,6.44500733,1930.2,1929.0,0.00153886]
[1772461812943,6.44500733,1930.2,1929.1,2.197]
[1772461813111,7.74022372,1930.2,1929.2,1.29587393]
[1772461813437,7.74022372,1930.2,1929.1,3.49292794]
[1772461813438,10.66973079,1930.2,1929.1,3.49292794]
[1772461813640,6.44500733,1930.1,1929.1,2.2]
[1772461814243,5.18004543,1930.5,1929.1,5.12950707]
[1772461814953,5.18004543,1930.9,1929.7,2.92950707]
[1772461815247,6.47484551,1930.8,1929.3,5.18321025]
[1772461815411,5.18004543,1930.5,1929.1,1.29594111]
[1772461815613,5.18004543,1930.5,1929.2,2.203]
[1772461815814,5.18004543,1930.2,1929.2,2.204]
[1772461816120,5.18004543,1930.2,1929.1,2.204]
[1772461817151,5.18004543,1930.2,1929.2,1.29587393]
[1772461817366,6.47525785,1930.2,1929.2,1.29587393]
[1772461817516,5.18004543,1930.1,1929.3,2.204]
[1772461817716,5.18004543,1930.1,1929.2,2.204]
[1772461818339,5.18004543,1930.0,1929.2,2.205]
[1772461818551,5.18004543,1930.0,1929.0,0.00153886]
[1772461818871,5.18004543,1929.7,1929.1,2.09593845]
[1772461819018,5.18004543,1929.7,1929.0,0.00153886]
[1772461819220,2.92950707,1929.8,1929.0,0.00153886]
[1772461819221,5.18004543,1929.8,1929.0,0.00153886]
[1772461819559,5.18004543,1929.8,1929.1,2.204]
[1772461819865,5.18011756,1930.6,1929.1,2.204]
[1772461819866,5.18004543,1930.7,1929.6,2.92950707]
[1772461820196,5.18004543,1930.7,1929.4,0.065536]
[1772461820332,5.18004543,1930.7,1929.5,2.204]
[1772461820657,5.18004543,1930.7,1929.5,5.13350707]
[1772461820857,5.18004543,1930.9,1929.6,5.315]
[1772461821067,5.18004543,1930.9,1929.7,2.204]
[1772461821364,5.18004543,1930.5,1929.8,2.109]
[1772461821565,0.001,1930.6,1929.8,2.109]
[1772461821862,0.001,1930.6,1929.9,2.205]
[1772461822065,0.001,1930.6,1929.7,2.92950707]
[1772461822364,0.001,1930.6,1929.4,1.2957396]
[1772461822365,5.18004543,1930.5,1929.4,4.22524667]
[1772461822665,5.18004543,1930.5,1929.4,1.2957396]
[1772461823064,5.18004543,1930.5,1929.5,2.204]
[1772461823362,5.18004543,1930.3,1929.6,2.204]
[1772461823730,5.18004543,1930.3,1929.2,5.18295843]
[1772461823931,5.18004543,1930.3,1929.7,2.205]
[1772461824126,5.18004543,1930.3,1929.2,5.18295843]
[1772461824332,5.18004543,1930.2,1929.3,2.204]
[1772461824528,5.18004543,1930.2,1929.1,5.18349574]
[1772461824529,5.18004543,1930.2,1929.4,2.205]
[1772461824733,5.18004543,1930.2,1929.1,1.29594111]
[1772461824954,5.18004543,1930.2,1929.0,0.00153886]
[1772461825271,5.18004543,1930.2,1929.1,2.205]
[1772461825487,5.18004543,1930.0,1929.1,3.5008743]
[1772461825647,5.18004543,1930.0,1929.1,1.2958743]
[1772461825838,5.18004543,1930.0,1929.2,2.204]
[1772461826035,5.18004543,1930.0,1929.1,1.2958743]
[1772461826262,5.18004543,1930.0,1929.0,1.29750584]
[1772461826463,5.18004543,1930.0,1929.1,2.204]
[1772461826669,1.29520484,1930.2,1929.1,2.203]
[1772461826670,5.18004543,1929.6,1929.1,2.203]
[1772461826981,5.18004543,1929.6,1929.0,2.20453886]
[1772461827265,5.18004543,1929.6,1928.9,2.203]
[1772461827468,4.077776,1929.4,1928.9,2.203]
[1772461827686,4.077776,1929.4,1928.3,5.18687715]
[1772461827687,4.077776,1929.1,1928.3,1.2975754]
[1772461827857,4.077776,1929.1,1928.3,3.4995754]
[1772461828041,4.077776,1929.1,1928.3,0.0011]
[1772461828236,4.077776,1928.8,1928.3,2.0931]
[1772461828441,4.077776,1928.8,1928.3,0.0011]
[1772461829470,4.077776,1928.6,1928.3,0.0011]
[1772461829860,3.54436358,1929.3,1928.3,0.0011]
[1772461830062,3.54436358,1929.3,1928.4,2.2]
[1772461830444,3.54436358,1929.3,1928.3,0.0011]
[1772461830646,3.54436358,1929.3,1928.4,2.199]
[1772461830980,3.54436358,1929.3,1928.3,0.0011]
[1772461830981,3.54436358,1929.2,1928.3,0.0011]
[1772461831144,3.54436358,1929.2,1928.5,2.199]
[1772461831344,3.54436358,1929.2,1928.3,0.0011]
[1772461831345,3.54436358,1929.2,1928.3,2.09467443]
[1772461831546,3.54436358,1929.8,1928.6,2.199]
[1772461831745,0.00153886,1930.0,1929.2,2.09357443]
[1772461831966,3.52061989,1930.2,1929.5,2.09357443]
[1772461832274,1.9139919,1930.4,1929.6,2.199]
[1772461832475,1.9139919,1930.4,1929.3,0.065536]
[1772461832661,1.9139919,1930.4,1929.0,0.00153886]
[1772461832862,1.9139919,1930.0,1929.1,1.285]
[1772461833682,3.20911664,1930.4,1929.2,1.29587393]
[1772461833999,1.9139919,1930.3,1929.4,2.09357443]
[1772461834144,1.9139919,1930.3,1929.5,2.199]
[1772461834464,1.9139919,1930.3,1929.6,2.198]
[1772461834661,1.9139919,1930.3,1929.2,1.29587393]
[1772461834873,1.9139919,1930.3,1929.4,2.198]
[1772461835051,1.9139919,1930.3,1929.4,2.197]
[1772461835654,1.9139919,1930.1,1929.0,0.00153886]
[1772461835856,1.9139919,1930.5,1929.7,2.09357443]
[1772461836058,1e-08,1930.6,1929.7,2.09357443]
[1772461836469,1e-08,1930.6,1929.6,2.40224194]
[1772461836869,0.00153886,1931.0,1930.1,2.09357443]
[1772461837045,0.00153886,1931.0,1929.6,2.46777794]
[1772461837046,0.00153886,1931.0,1930.4,2.09357443]
[1772461837244,1.9139919,1931.7,1930.8,2.09357443]
[1772461837553,1.29555416,1932.0,1931.1,2.09357443]
[1772461837762,1.9139919,1931.9,1931.2,2.195]
[1772461838141,1.9139919,1931.9,1931.1,1.29454481]
[1772461838347,1.9139919,1931.9,1930.8,5.17908845]
[1772461838547,1.9139919,1931.9,1930.9,2.194]
[1772461838945,1.9139919,1931.9,1931.0,2.193]
[1772461839145,1.9139919,1931.9,1931.1,2.193]
[1772461839345,1.9139919,1931.9,1930.8,2.194]
[1772461839547,1.9139919,1931.8,1930.7,2.193]
[1772461839776,1.9139919,1931.6,1930.7,2.193]
[1772461840084,1.9139919,1931.6,1930.3,1.29513547]
[1772461840286,1.9139919,1931.6,1930.8,2.194]
[1772461841551,1.9139919,1931.6,1930.9,2.194]
[1772461841865,1.9139919,1931.4,1931.0,2.193]
[1772461842174,1.9139919,1931.4,1931.1,2.193]
[1772461842385,1.9139919,1931.4,1930.9,2.192]
[1772461842975,7.91587294,1931.8,1930.9,2.192]
[1772461842976,1.9139919,1931.8,1930.9,2.192]
[1772461843797,1.9139919,1931.7,1930.2,3.76627539]
[1772461843973,1.9139919,1931.7,1930.6,2.19]
[1772461844402,1.9139919,1931.7,1930.4,0.065536]
[1772461844618,5.1765193,1931.9,1930.4,0.065536]
[1772461844619,0.00153886,1932.0,1930.8,0.065536]
[1772461844774,0.00153886,1932.0,1930.9,0.14948499]
[1772461845101,2.14662438,1933.2,1930.9,0.14948499]
[1772461845102,1.9139919,1932.8,1930.9,0.14948499]
[1772461845301,0.001,1931.3,1931.0,4.85853886]
[1772461845598,1.9139919,1932.8,1931.0,0.00153886]
[1772461845599,1.9139919,1932.7,1931.0,0.00153886]
[1772461845774,2.14662438,1932.4,1931.2,1.29453189]
[1772461845971,1.9139919,1932.3,1931.2,1.29453189]
[1772461846168,1.9139919,1932.3,1931.3,2.189]
[1772461846793,1.9139919,1932.3,1931.4,2.19]
[1772461846989,1.9139919,1932.3,1931.1,1.29456883]
[1772461847197,2.5139919,1932.7,1931.5,2.191]
[1772461847384,1.9139919,1932.7,1931.5,2.191]
[1772461847584,0.00153886,1933.0,1931.6,0.065536]
[1772461847891,0.00153886,1933.0,1931.8,0.065536]
[1772461848088,0.00153886,1933.0,1931.9,0.14948499]
[1772461848288,0.778314,1933.2,1932.3,2.14662438]
[1772461848477,0.778314,1933.6,1932.3,2.14662438]
[1772461848680,0.778314,1933.6,1932.4,0.065536]
[1772461848872,0.002,1933.9,1933.1,2.14662438]
[1772461849176,0.778314,1934.5,1933.2,0.065536]
[1772461849378,0.93260056,1935.0,1933.6,0.065536]
[1772461849582,0.778314,1934.9,1933.6,0.065536]
[1772461849933,0.778314,1934.7,1933.0,1.29481456]
[1772461850209,0.778314,1934.3,1933.1,2.191]
[1772461850412,0.778314,1933.9,1933.0,0.00153886]
[1772461850776,0.778314,1933.7,1932.6,2.191]
[1772461850973,0.778314,1933.7,1932.7,2.19]
[1772461851207,0.778314,1933.7,1932.2,5.17541595]
[1772461851406,0.778314,1933.7,1932.6,2.191]
[1772461851606,0.778314,1933.7,1932.1,5.17544767]
[1772461851794,0.778314,1933.5,1932.0,0.00153886]
[1772461852112,0.778314,1933.9,1932.5,2.14662438]
[1772461852316,0.778314,1933.9,1932.6,0.065536]
[1772461852517,0.778314,1933.9,1932.6,5.366536]
[1772461852718,0.778314,1933.9,1932.6,0.065536]
[1772461852901,0.778314,1933.9,1932.0,2.14816324]
[1772461853082,0.778314,1933.9,1932.1,1.721536]
[1772461853490,0.778314,1933.9,1932.0,5.25616324]
[1772461853491,0.778314,1933.7,1932.2,2.194]
[1772461853686,0.778314,1933.5,1932.3,1.29379495]
[1772461853885,0.778314,1933.4,1932.0,0.00153886]
[1772461854191,0.778314,1933.4,1932.1,2.195]
[1772461854915,0.778314,1933.8,1932.4,2.14662438]
[1772461855119,0.778314,1933.8,1932.5,0.065536]
[1772461855494,0.778314,1933.8,1932.6,2.195]
[1772461855829,0.778314,1933.7,1932.7,2.195]
[1772461855989,0.778314,1933.7,1932.6,1.29359412]
[1772461856186,0.778314,1933.7,1932.8,2.195]
[1772461856518,0.778314,1933.7,1932.9,2.194]
[1772461856986,0.778314,1933.7,1932.6,1.29359412]
[1772461857188,0.778314,1933.7,1932.7,2.193]
[1772461857917,1.29423915,1934.0,1932.7,2.193]
[1772461857918,0.00153886,1934.0,1932.8,1.29346026]
[1772461858098,1.29420494,1934.0,1932.8,1.29346026]
[1772461858299,0.778314,1933.9,1932.8,1.29346026]
[1772461858624,0.778314,1933.8,1932.9,2.194]
[1772461858792,0.778314,1933.8,1933.0,2.194]
[1772461858985,0.778314,1933.8,1932.8,2.193]
[1772461859894,0.00153886,1934.0,1933.1,0.065536]
[1772461860123,0.47610732,1934.5,1933.1,0.065536]
[1772461860326,0.47610732,1935.3,1933.5,0.51745943]
[1772461860489,5.16608978,1935.9,1934.2,2.14662438]
[1772461860691,0.47610732,1935.8,1934.2,2.14662438]
[1772461860887,0.47610732,1935.8,1934.0,2.49261524]
[1772461861100,0.54164332,1935.3,1934.1,2.196]
[1772461861397,0.47610732,1934.9,1934.0,0.00153886]
[1772461861591,0.47610732,1935.4,1934.0,0.00153886]
[1772461861792,1.29292787,1936.0,1934.4,0.45192343]
[1772461862131,5.16528925,1936.2,1934.4,0.45192343]
[1772461862132,1.29072228,1936.9,1935.2,0.45192343]
[1772461862333,1.29072228,1936.9,1935.1,2.14662438]
[1772461862334,1.29223626,1937.0,1935.6,0.45192343]
[1772461862535,1.29223626,1937.0,1935.7,1.368]
[1772461862823,1.29219775,1937.0,1935.8,1.637]
[1772461863023,5.15970572,1938.1,1936.4,0.45192343]
[1772461863231,5.16049127,1937.9,1936.4,0.45192343]
[1772461863533,0.47610732,1937.7,1935.9,0.45192343]
[1772461863691,0.54164332,1937.4,1935.4,2.94453867]
[1772461863894,0.065536,1937.2,1936.0,0.00153886]
[1772461864126,0.47610732,1937.1,1936.0,0.00153886]
[1772461864425,1.29045578,1937.3,1936.0,0.00153886]
[1772461864646,1.290226,1937.7,1936.1,0.45192343]
[1772461865131,0.54164332,1937.6,1936.0,0.00153886]
[1772461865338,0.69112831,1937.2,1936.0,0.00153886]
[1772461865503,0.47610732,1937.6,1936.0,0.00153886]
[1772461865704,0.47610732,1937.4,1936.0,0.00153886]
[1772461866037,1.29045578,1937.3,1936.0,0.00153886]
[1772461866235,0.065536,1937.7,1936.0,0.00153886]
[1772461866544,1.29022661,1937.7,1936.2,0.45192343]
[1772461866827,1.29156766,1938.0,1936.2,0.45192343]
[1772461867027,1.29154248,1938.0,1936.5,0.51745943]
[1772461867229,1.29154248,1938.0,1936.7,0.45192343]
[1772461867230,1.29156219,1938.0,1936.7,0.45192343]
[1772461867526,1.29156219,1938.0,1936.2,0.45192343]
[1772461867731,2.6227317,1937.9,1936.2,0.45192343]
[1772461868031,2.6227317,1937.9,1935.8,2.14662438]
[1772461868032,2.6882677,1937.5,1936.0,1.29284981]
[1772461868338,2.65060544,1937.7,1936.0,1.29284981]
[1772461868539,2.65060544,1937.7,1936.1,0.45192343]
[1772461868707,1.29010523,1937.9,1936.3,0.45192343]
[1772461868902,1.2895239,1938.7,1937.1,0.45192343]
[1772461869104,1.2895239,1938.7,1937.3,0.45192343]
[1772461869317,0.1527477,1938.8,1937.6,2.59854781]
[1772461869520,0.1527477,1938.8,1937.7,2.204]
[1772461869866,1.29019989,1940.0,1938.6,1.28959042]
[1772461870157,0.00153886,1940.0,1938.9,0.45192343]
[1772461870318,0.00153886,1940.0,1938.6,1.74151385]
[1772461870515,0.00153886,1940.0,1938.7,0.51745943]
[1772461870860,0.00153886,1940.0,1939.0,0.45192343]
[1772461871154,1.28806223,1940.9,1939.4,0.45192343]
[1772461871305,1.28806223,1940.9,1939.0,0.065536]
[1772461871306,0.47610732,1940.3,1939.0,0.00153886]
[1772461871506,0.47610732,1940.2,1939.0,0.00153886]
[1772461871708,0.47610732,1940.7,1939.0,0.00153886]
[1772461871906,1.28826136,1940.6,1939.1,2.205]
[1772461872132,0.00153886,1941.0,1939.5,2.59854781]
[1772461872133,1.28953729,1941.0,1939.5,2.59854781]
[1772461872458,1.28953729,1941.0,1939.1,2.270536]
[1772461872459,2.15176362,1941.7,1940.3,2.14662438]
[1772461872771,2.15176362,1941.7,1939.7,0.45192343]